bitfinex-derivatives/quotes_SOLF0:USTF0_20241029
["timestamp","ask_amount","ask_price","bid_price","bid_amount"]
[1730168884294,7.63079811,181.91,181.8,27.48426374]
[1730168884499,2.7511,181.88,181.82,2.752]
[1730168884700,7.63079811,181.91,181.8,27.48426374]
[1730168885500,2.7509,181.89,181.83,2.7518]
[1730168885900,7.63079811,181.91,181.8,27.48426374]
[1730168886201,7.63079811,181.91,181.79,6.14]
[1730168886510,7.63079811,181.91,181.84,27.48426374]
[1730168886690,7.63079811,181.91,181.86,2.7514]
[1730168886895,7.63079811,181.91,181.84,27.48426374]
[1730168887101,2.7508,181.91,181.84,2.7516]
[1730168887301,2.7508,181.91,181.8,27.48426374]
[1730168887302,2.5098,181.92,181.8,27.48426374]
[1730168887507,2.5098,181.92,181.85,27.48426374]
[1730168887698,6.14,181.96,181.85,27.48426374]
[1730168888100,2.4859,181.97,181.86,6.14]
[1730168888403,2.4859,181.97,181.88,27.48426374]
[1730168888608,2.4859,181.97,181.91,2.7505]
[1730168888805,2.4859,181.97,181.88,27.48426374]
[1730168888997,2.4859,181.97,181.92,2.7504]
[1730168889196,65.6,182.02,181.91,27.48426374]
[1730168889406,6.14,182.02,181.91,27.48426374]
[1730168889600,2.7492,182.01,181.92,2.7503]
[1730168889796,6.14,182.02,181.91,27.48426374]
[1730168891508,6.14,182.02,181.94,2.7502]
[1730168891903,6.14,182.02,181.91,27.48426374]
[1730168892506,6.14,182.02,181.94,2.75]
[1730168892707,6.14,182.02,181.88,33.62426374]
[1730168892909,27.48426374,182.01,181.85,27.48426374]
[1730168893102,27.48426374,182.01,181.86,6.14]
[1730168893311,27.48426374,181.98,181.88,2.7509]
[1730168893801,2.7498,181.97,181.89,2.7508]
[1730168894997,2.7504,181.93,181.86,2.7514]
[1730168895302,6.14,181.96,181.83,6.14]
[1730168895701,6.14,181.96,181.89,2.7509]
[1730168895902,6.14,181.96,181.83,6.14]
[1730168896410,6.14,181.96,181.89,2.7508]
[1730168896617,6.14,181.96,181.88,27.48426374]
[1730168897109,27.48426374,182.03,181.88,27.48426374]
[1730168897307,6.14,182.02,181.88,27.48426374]
[1730168897507,27.48426374,182.01,181.77,5.5055]
[1730168897710,27.48426374,182.01,181.84,27.48426374]
[1730168897915,27.48426374,182.01,181.84,33.62426374]
[1730168898117,2.7496,181.98,181.92,2.7505]
[1730168898611,2.7496,181.98,181.84,33.62426374]
[1730168898612,27.48426374,182.01,181.84,33.62426374]
[1730168898812,2.7498,181.97,181.9,2.7506]
[1730168899203,2.7498,181.97,181.84,33.62426374]
[1730168899508,27.48426374,181.98,181.84,33.62426374]
[1730168899707,6.14,181.97,181.8,27.48426374]
[1730168899905,2.7503,181.94,181.87,2.7512]
[1730168900104,2.4687,181.93,181.82,27.48426374]
[1730168900306,2.4687,181.93,181.88,2.751]
[1730168900807,2.4687,181.93,181.9,2.7507]
[1730168901003,2.4687,181.93,181.85,27.48426374]
[1730168902109,2.4687,181.93,181.9,2.7508]
[1730168902807,6.14,181.98,181.85,27.48426374]
[1730168903007,6.14,181.98,181.81,6.14]
[1730168903008,8.8896,181.98,181.93,2.7503]
[1730168903208,8.8896,181.98,181.88,27.48426374]
[1730168903411,8.8896,181.98,181.92,2.7504]
[1730168903710,8.8896,181.98,181.88,27.48426374]
[1730168903912,6.14,181.98,181.93,2.7503]
[1730168904123,6.14,181.98,181.88,27.48426374]
[1730168904309,2.5288,182.0,181.88,27.48426374]
[1730168904501,8.6688,182.0,181.88,27.48426374]
[1730168904702,8.6688,182.0,181.96,2.7498]
[1730168905107,2.5288,182.0,181.95,2.75]
[1730168905408,2.5288,182.0,181.91,27.48426374]
[1730168905615,2.5288,182.0,181.93,2.7502]
[1730168905817,2.5288,182.0,181.91,27.48426374]
[1730168906205,2.5288,182.0,181.97,2.7497]
[1730168906713,2.5288,182.0,181.91,27.48426374]
[1730168907015,2.5288,182.0,181.96,2.7498]
[1730168908913,4.03258969,182.04,181.94,27.48426374]
[1730168909111,6.78128969,182.04,181.94,27.48426374]
[1730168909614,4.03258969,182.04,181.94,27.48426374]
[1730168909809,4.03258969,182.04,181.98,2.7495]
[1730168909810,2.7489,182.03,181.98,2.7495]
[1730168910413,2.7489,182.03,181.94,27.48426374]
[1730168910609,2.4002,182.06,181.97,27.48426374]
[1730168911713,2.4002,182.06,182.03,2.7487]
[1730168912407,2.4002,182.06,182.05,2.7485]
[1730168912607,1.2637,182.1,181.99,27.48426374]
[1730168913013,1.2637,182.1,181.99,33.60426374]
[1730168913212,2.3879,182.16,182.02,27.48426374]
[1730168913420,6.12,182.15,182.05,27.48426374]
[1730168914421,2.3879,182.16,182.05,33.60426374]
[1730168915715,2.747,182.15,182.08,2.748]
[1730168915915,2.3879,182.16,182.05,27.48426374]
[1730168916114,2.3879,182.16,182.08,2.748]
[1730168916309,2.3879,182.16,182.05,27.48426374]
[1730168916310,2.7472,182.14,182.05,27.48426374]
[1730168916813,2.7473,182.13,182.07,2.7482]
[1730168917009,2.3879,182.16,182.05,27.48426374]
[1730168917221,2.3879,182.16,182.04,2.7486]
[1730168917526,2.7476,182.12,182.04,2.7486]
[1730168918324,29.87216374,182.16,182.04,2.7486]
[1730168918527,2.7476,182.12,182.04,2.7486]
[1730168918831,29.87216374,182.16,182.02,27.48426374]
[1730168919011,2.7479,182.1,182.02,30.23306374]
[1730168919215,29.87216374,182.16,182.02,27.48426374]
[1730168919216,8.62780677,182.12,182.02,27.48426374]
[1730168919421,5.9,182.12,181.99,33.38426374]
[1730168919624,2.7478,182.1,182.03,2.7487]
[1730168920029,5.9,182.12,181.99,33.38426374]
[1730168920218,5.9,182.12,182.08,2.7479]
[1730168921625,5.9,182.12,182.05,2.7485]
[1730168921826,2.7476,182.11,182.05,2.7485]
[1730168922023,8.2879,182.16,182.02,27.48426374]
[1730168922429,35.77216374,182.16,182.02,27.48426374]
[1730168922627,2.7478,182.1,182.05,2.7485]
[1730168922818,35.77216374,182.16,182.02,27.48426374]
[1730168923230,2.7477,182.11,182.05,2.7485]
[1730168923627,2.70605407,182.12,181.99,33.38426374]
[1730168923823,27.48426374,182.13,181.99,33.38426374]
[1730168923824,2.7483,182.07,181.99,33.38426374]
[1730168924434,2.7483,182.07,182.0,17.1655387]
[1730168924626,2.7485,182.06,181.97,17.1655387]
[1730168925027,2.7485,182.06,182.0,2.7492]
[1730168925332,2.7485,182.06,182.0,17.1655387]
[1730168925833,2.7485,182.05,182.0,19.9147387]
[1730168926230,3.91148034,182.1,181.97,17.1655387]
[1730168926231,17.1655387,182.08,181.97,17.1655387]
[1730168926830,17.1655387,182.08,181.83,8.2554]
[1730168926831,17.1655387,182.03,181.81,22.6697387]
[1730168927036,17.1655387,182.01,181.73,59.38]
[1730168927233,2.7501,181.95,181.89,2.7508]
[1730168927434,7.0763,182.0,181.69,59.38]
[1730168927435,5.9,181.96,181.69,59.38]
[1730168927639,5.9,181.96,181.82,2.7519]
[1730168927640,2.7509,181.89,181.82,2.7519]
[1730168927936,19.6281387,181.94,181.7,5.9]
[1730168927937,5.9,181.9,181.81,17.1655387]
[1730168928136,2.7506,181.92,181.84,19.9171387]
[1730168928335,2.4626,181.94,181.84,19.9171387]
[1730168928336,5.9,181.91,181.84,19.9171387]
[1730168928635,2.4626,181.94,181.85,27.48307464]
[1730168928845,2.4626,181.94,181.88,2.751]
[1730168929032,5.9,181.96,181.88,27.48307464]
[1730168929232,8.6499,181.96,181.89,2.7509]
[1730168929544,8.6499,181.96,181.88,27.48307464]
[1730168929545,5.9,181.96,181.91,27.48307464]
[1730168929733,2.522,181.99,181.93,2.7503]
[1730168929933,5.9,182.03,181.94,27.48307464]
[1730168930341,5.9,182.03,181.92,2.7504]
[1730168930731,5.9,182.03,181.91,27.48307464]
[1730168931535,2.7493,182.0,181.93,2.7503]
[1730168932048,5.9,182.03,181.93,2.7503]
[1730168932732,2.5194,182.05,181.93,2.7503]
[1730168932938,5.9,182.04,181.93,2.7503]
[1730168933834,5.33483796,182.05,181.91,27.48307464]
[1730168933835,2.5194,182.05,181.91,27.48307464]
[1730168934036,5.9,182.09,181.97,27.48307464]
[1730168934241,7.1055,182.09,181.97,27.48307464]
[1730168934543,7.1055,182.09,182.0,27.48307464]
[1730168935045,7.1055,182.09,182.01,2.749]
[1730168935440,7.1055,182.09,182.0,27.48307464]
[1730168936043,2.7487,182.05,181.99,2.7494]
[1730168936837,2.7487,182.05,181.97,27.48307464]
[1730168936838,7.1055,182.09,181.97,27.48307464]
[1730168937442,7.1055,182.09,181.94,5.9]
[1730168937443,27.48307464,182.08,181.94,27.48307464]
[1730168938541,27.48307464,182.08,181.91,27.48307464]
[1730168938846,27.48307464,182.08,181.93,2.7502]
[1730168939547,2.7495,181.99,181.93,2.7502]
[1730168940537,5.9,182.01,181.93,2.7502]
[1730168940747,2.7496,181.98,181.93,2.7502]
[1730168940941,5.9,182.01,181.93,2.7502]
[1730168941537,5.9,182.01,181.94,2.7502]
[1730168941732,5.9,182.01,181.91,27.48307464]
[1730168941943,2.7487,182.04,181.94,27.48307464]
[1730168942139,2.7487,182.04,181.97,2.7497]
[1730168942337,2.7487,182.04,181.94,27.48307464]
[1730168942737,5.9,182.05,181.97,2.7497]
[1730168942738,2.7489,182.03,181.97,2.7497]
[1730168943546,2.7488,182.03,181.94,27.48307464]
[1730168943937,2.7494,182.0,181.94,2.7502]
[1730168944143,1.2229,182.04,181.91,27.48307464]
[1730168944355,2.4607,182.04,181.91,27.48307464]
[1730168944643,2.7495,181.99,181.94,2.7501]
[1730168945045,5.2094,182.04,181.99,2.7494]
[1730168945347,1.2229,182.04,181.94,27.48307464]
[1730168945541,5.74,182.05,181.94,27.48307464]
[1730168945736,5.74,182.05,181.99,2.7493]
[1730168946141,2.7481,182.08,182.03,2.7488]
[1730168946448,5.74,182.08,182.0,27.48307464]
[1730168947144,8.4881,182.08,182.03,2.7487]
[1730168947647,8.4881,182.08,182.0,27.48307464]
[1730168947849,1.2229,182.1,182.0,27.48307464]
[1730168948042,2.7479,182.1,182.0,27.48307464]
[1730168948242,5.74,182.11,182.04,2.7486]
[1730168948445,5.74,182.11,182.0,27.48307464]
[1730168948647,2.7479,182.1,182.0,27.48307464]
[1730168948844,2.7479,182.1,182.05,2.7485]
[1730168949248,5.74,182.11,182.04,2.7486]
[1730168949555,5.74,182.11,182.0,27.48307464]
[1730168949943,2.7482,182.08,182.03,2.7487]
[1730168950252,2.7482,182.08,182.0,27.48307464]
[1730168950461,3.7064,182.18,182.0,27.48307464]
[1730168950647,3.7064,182.18,182.03,27.48307464]
[1730168950648,33.22307464,182.17,182.03,27.48307464]
[1730168951043,2.7473,182.13,182.07,2.7481]
[1730168951446,3.7064,182.18,181.91,16.52]
[1730168951639,3.7064,182.18,182.01,27.48307464]
[1730168951640,5.74,182.15,182.01,27.48307464]
[1730168952040,5.74,182.15,182.07,2.7481]
[1730168952041,2.7475,182.12,182.07,2.7481]
[1730168952243,5.74,182.15,181.99,5.74]
[1730168952244,5.74,182.15,182.04,27.48307464]
[1730168952541,5.74,182.15,182.06,2.7482]
[1730168952748,5.74,182.15,182.04,27.48307464]
[1730168953157,27.48307464,182.14,181.89,5.5019]
[1730168953348,30.18087855,182.14,181.97,27.48307464]
[1730168953550,27.48307464,182.14,181.97,27.48307464]
[1730168953746,30.29940592,182.14,181.97,27.48307464]
[1730168954049,2.7473049,182.14,182.0,27.48307464]
[1730168954255,5.74,182.15,182.0,27.48307464]
[1730168954452,2.7475,182.12,182.05,2.7485]
[1730168954657,5.74,182.11,182.05,2.7485]
[1730168955242,2.7481,182.08,182.03,2.7488]
[1730168955556,5.74,182.11,181.98,27.48307464]
[1730168956058,2.7479,182.09,182.03,2.7487]
[1730168956262,5.74,182.11,182.01,27.48307464]
[1730168956550,5.74,182.11,182.01,33.22307464]
[1730168956754,5.74,182.11,182.07,2.7482]
[1730168957557,5.74,182.17,182.04,27.48307464]
[1730168958054,33.22307464,182.17,182.01,33.22307464]
[1730168958659,33.22307464,182.17,182.07,2.7481]
[1730168958660,2.7473,182.13,182.07,2.7481]
[1730168958854,33.22307464,182.17,182.01,33.22307464]
[1730168959452,27.48307464,182.17,182.01,33.22307464]
[1730168959757,2.7471,182.15,182.04,27.48307464]
[1730168959954,5.72,182.16,182.04,27.48307464]
[1730168960151,2.7472,182.14,182.09,2.7479]
[1730168960655,2.7474,182.13,182.08,2.7479]
[1730168960856,5.72,182.16,182.04,27.48307464]
[1730168961457,3.7064,182.18,182.04,27.48307464]
[1730168961854,2.7472,182.14,182.1,2.7477]
[1730168962060,3.7064,182.18,182.07,27.48307464]
[1730168963355,2.7471,182.15,182.09,2.7478]
[1730168963657,3.7064,182.18,182.09,2.7478]
[1730168963850,2.7472,182.14,182.09,2.7479]
[1730168964555,3.7064,182.18,182.05,5.72]
[1730168964556,2.747,182.15,182.05,5.72]
[1730168965157,2.747,182.15,182.09,2.7478]
[1730168965356,3.7064,182.18,182.05,5.72]
[1730168965357,27.48307464,182.16,182.05,5.72]
[1730168965656,27.48307464,182.16,182.08,2.748]
[1730168965857,2.7473,182.14,182.04,27.48307464]
[1730168966056,3.7064,182.18,182.04,27.48307464]
[1730168966057,5.72,182.15,182.04,27.48307464]
[1730168966256,5.72,182.15,182.09,2.7479]
[1730168966457,8.4671,182.15,182.09,2.7479]
[1730168968761,5.72,182.15,182.09,2.7479]
[1730168968963,5.72,182.15,182.07,2.7482]
[1730168969358,2.7474,182.13,182.07,2.7482]
[1730168969562,2.7474,182.13,182.08,2.7481]
[1730168970273,2.7478,182.1,182.01,33.20307464]
[1730168970475,17.16211128,182.13,182.01,22.88211128]
[1730168970870,2.7476,182.11,182.06,2.7482]
[1730168971072,17.16211128,182.13,182.01,22.88211128]
[1730168971374,2.7475,182.12,182.07,2.7482]
[1730168971573,22.88211128,182.15,182.04,17.16211128]
[1730168971782,5.72,182.15,182.06,17.16211128]
[1730168971982,5.72,182.15,182.07,2.7482]
[1730168972581,2.7473,182.13,182.07,2.7482]
[1730168972978,5.72,182.15,182.08,2.7479]
[1730168973184,8.4671,182.15,182.03,27.4803363]
[1730168973380,5.72,182.15,182.03,27.4803363]
[1730168973691,2.7472,182.14,182.08,2.7479]
[1730168974284,5.72,182.15,182.03,27.4803363]
[1730168974491,2.7477,182.11,182.03,27.4803363]
[1730168975088,5.72,182.15,182.03,27.4803363]
[1730168975580,2.71650428,182.14,182.03,27.4803363]
[1730168977490,2.7476,182.11,182.05,2.7485]
[1730168978187,2.71650428,182.14,182.03,27.4803363]
[1730168978390,2.7474,182.13,182.03,27.4803363]
[1730168978589,5.72,182.15,182.03,27.4803363]
[1730168978793,2.7472,182.14,182.08,2.7479]
[1730168978979,2.7472,182.14,182.03,27.4803363]
[1730168979184,5.72,182.16,182.06,27.4803363]
[1730168979387,2.747,182.15,182.1,2.7476]
[1730168979783,5.72,182.16,182.06,27.4803363]
[1730168979784,3.7064,182.18,182.06,27.4803363]
[1730168979984,2.7469,182.16,182.11,2.7475]
[1730168981185,2.7465,182.19,182.13,2.7472]
[1730168981384,2.5043,182.23,182.12,27.4803363]
[1730168981588,2.5043,182.23,182.09,5.72]
[1730168981589,6.9682,182.22,182.09,33.2003363]
[1730168981792,34.4485363,182.22,182.09,33.2003363]
[1730168982181,2.7464,182.19,182.13,2.7473]
[1730168982992,34.4485363,182.22,182.09,27.4803363]
[1730168983180,6.9682,182.22,182.09,27.4803363]
[1730168983386,2.7466,182.18,182.09,27.4803363]
[1730168983887,2.7466,182.18,182.11,2.7475]
[1730168984497,2.7465,182.19,182.11,2.7476]
[1730168984789,6.9682,182.22,182.11,2.7476]
[1730168984987,34.4485363,182.22,182.09,27.4803363]
[1730168985184,2.7469,182.16,182.1,2.7477]
[1730168985596,2.7469,182.16,182.09,27.4803363]
[1730168985597,2.7466,182.18,182.11,2.7476]
[1730168986195,2.7468,182.17,182.11,2.7476]
[1730168987896,2.7465,182.19,182.1,2.7476]
[1730168988093,34.4485363,182.22,182.1,2.7476]
[1730168988490,34.4485363,182.22,182.09,27.4803363]
[1730168988695,34.4485363,182.22,182.11,2.7476]
[1730168988890,6.9682,182.22,182.09,27.4803363]
[1730168989290,2.7467,182.18,182.12,2.7473]
[1730168989897,1.2482,182.22,182.03,27.4803363]
[1730168990096,6.9682,182.22,182.12,27.4803363]
[1730168991100,6.9682,182.22,182.1,27.4803363]
[1730168991604,6.9682,182.22,182.13,27.4803363]
[1730168992200,181.54001981,182.32,182.03,27.4803363]
[1730168992201,3.6452,182.31,182.21,27.4803363]
[1730168992395,2.4429,182.31,182.22,27.4803363]
[1730168992996,2.7451,182.28,182.22,27.4803363]
[1730168993202,2.72178234,182.34,182.22,27.4803363]
[1730168993391,3.6327,182.36,182.22,27.4803363]
[1730168993596,2.7444,182.33,182.25,27.4803363]
[1730168994007,2.7444,182.32,182.25,27.4803363]
[1730168994202,1.2023,182.35,182.25,27.4803363]
[1730168994403,5.72,182.34,182.18,5.72]
[1730168994596,2.7445,182.32,182.27,17.15183311]
[1730168994998,5.72,182.34,182.27,17.15183311]
[1730168995198,1.2023,182.35,182.27,17.15183311]
[1730168995404,5.13926205,182.36,182.27,17.15183311]
[1730168995405,2.70886205,182.36,182.27,17.15183311]
[1730168995597,5.72,182.37,182.3,17.15183311]
[1730168996006,5.72,182.36,182.28,17.15183311]
[1730168996311,5.72,182.36,182.23,17.15183311]
[1730168996312,17.15183311,182.35,182.23,17.15183311]
[1730168996599,17.15183311,182.39,182.28,17.15183311]
[1730168996805,5.72,182.39,182.28,17.15183311]
[1730168997003,17.15183311,182.37,182.26,17.15183311]
[1730168997204,1.1818,182.36,182.26,17.15183311]
[1730168997508,2.7445,182.32,182.26,17.15183311]
[1730168997709,5.72,182.34,182.26,17.15183311]
[1730168999109,5.72,182.34,182.24,17.15183311]
[1730169000512,5.72,182.34,182.26,17.15183311]
[1730169000811,17.15183311,182.32,182.19,17.15183311]
[1730169001012,17.15183311,182.32,182.21,17.15183311]
[1730169001209,22.87183311,182.34,182.23,2.7457]
[1730169001815,5.72,182.33,182.24,16.15183311]
[1730169002205,1.2113,182.35,182.21,17.15183311]
[1730169002408,22.87183311,182.33,182.21,17.15183311]
[1730169003304,2.745,182.29,182.23,2.7457]
[1730169003612,17.15183311,182.3,182.19,17.15183311]
[1730169004308,2.7453,182.27,182.21,2.7461]
[1730169004913,2.7451,182.28,182.22,2.7458]
[1730169005220,17.15183311,182.32,182.21,17.15183311]
[1730169005422,1.2113,182.35,182.24,17.15183311]
[1730169005619,17.15183311,182.3,182.12,2.68274658]
[1730169005921,22.87183311,182.3,182.18,17.15183311]
[1730169006119,2.7453,182.27,182.21,2.746]
[1730169006416,5.72,182.3,182.23,17.15183311]
[1730169006618,1.2113,182.35,182.25,17.15183311]
[1730169007221,2.7446,182.32,182.26,2.7452]
[1730169008319,2.7448,182.3,182.25,2.7455]
[1730169008624,17.15183311,182.33,182.2,22.87183311]
[1730169008818,2.7449,182.3,182.24,2.7456]
[1730169009023,17.15183311,182.33,182.2,22.87183311]
[1730169009320,17.15183311,182.31,182.17,17.15183311]
[1730169009521,17.15183311,182.31,182.21,2.7461]
[1730169009522,5.72,182.3,182.21,2.7461]
[1730169009821,5.72,182.3,182.22,17.15183311]
[1730169010024,5.72,182.3,182.2,17.15183311]
[1730169010518,5.72,182.3,182.17,5.72]
[1730169010519,17.15183311,182.28,182.17,22.87183311]
[1730169010720,19.87801813,182.28,182.17,22.87183311]
[1730169010921,2.7454,182.26,182.2,2.7461]
[1730169011312,2.7454,182.26,182.21,2.7461]
[1730169012217,2.7458,182.24,182.17,22.87183311]
[1730169012418,19.91983376,182.28,182.17,17.15183311]
[1730169012816,2.7455,182.25,182.18,2.7464]
[1730169013019,19.91983376,182.28,182.15,5.72]
[1730169013020,17.15183311,182.26,182.15,22.87183311]
[1730169013226,17.15183311,182.24,182.08,59.36]
[1730169013413,5.72,182.25,181.99,59.32]
[1730169013414,17.15183311,182.22,181.99,59.32]
[1730169013609,17.15183311,182.22,182.12,17.15183311]
[1730169014321,17.15183311,182.22,182.09,17.15183311]
[1730169014626,17.15183311,182.22,181.99,59.32]
[1730169014627,17.15183311,182.17,182.04,17.15183311]
[1730169014821,9.4308,182.16,182.04,17.15183311]
[1730169015328,12.23428862,182.16,182.04,17.15183311]
[1730169015619,26.58263311,182.16,182.04,17.15183311]
[1730169015828,29.32953311,182.16,182.07,19.89993311]
[1730169016019,9.4308,182.16,182.09,17.15183311]
[1730169016218,17.15183311,182.15,182.04,17.15183311]
[1730169016619,17.15183311,182.13,182.02,2.7489]
[1730169016926,17.15183311,182.13,182.01,17.15183311]
[1730169017711,2.7482,182.08,182.01,17.15183311]
[1730169017914,9.4308,182.16,182.01,17.15183311]
[1730169017915,5.72,182.1,182.01,17.15183311]
[1730169018322,2.7481,182.08,182.01,17.15183311]
[1730169018624,5.72,182.1,182.01,17.15183311]
[1730169018813,8.4678,182.1,182.02,2.749]
[1730169019017,5.72,182.1,182.04,17.15183311]
[1730169019921,3.7108,182.16,182.06,17.15183311]
[1730169019922,2.7473,182.14,182.06,17.15183311]
[1730169020119,5.72,182.15,182.09,17.15183311]
[1730169020520,2.4214,182.16,182.11,17.15183311]
[1730169020723,18.33513311,182.23,182.13,17.15183311]
[1730169020724,2.4867,182.22,182.13,17.15183311]
[1730169021229,2.4867,182.22,182.11,19.89933311]
[1730169021230,2.7464,182.19,182.11,19.89933311]
[1730169021524,2.7463,182.2,182.12,2.7473]
[1730169021725,2.7463,182.2,182.14,17.15183311]
[1730169021920,5.72,182.23,182.16,17.15183311]
[1730169022120,5.72,182.23,182.1,5.72]
[1730169022121,5.72,182.23,182.19,17.15183311]
[1730169022314,2.7455,182.25,182.19,17.15183311]
[1730169022516,5.72,182.26,182.17,27.437795]
[1730169022821,5.72,182.26,182.2,30.183895]
[1730169023024,59.34,182.43,182.22,27.437795]
[1730169023219,59.34,182.43,182.1,27.437795]
[1730169023220,8.1996,182.37,182.25,27.437795]
[1730169023625,8.1996,182.37,182.25,27.137795]
[1730169023818,27.437795,182.35,182.19,27.437795]
[1730169024215,8.1996,182.37,182.18,5.72]
[1730169024216,2.7443,182.33,182.24,2.7456]
[1730169025023,2.7448,182.3,182.22,27.437795]
[1730169025226,5.72,182.36,182.24,27.437795]
[1730169025432,8.4639,182.36,182.28,2.745]
[1730169025629,2.4796,182.37,182.27,27.437795]
[1730169026226,2.4796,182.37,182.28,2.745]
[1730169026429,2.4796,182.37,182.25,5.72]
[1730169026630,89.92611666,182.54,182.29,27.437795]
[1730169026833,89.92611666,182.54,182.25,5.72]
[1730169026834,2.4512,182.43,182.32,27.437795]
[1730169027424,2.4512,182.43,182.28,5.72]
[1730169027425,29.888995,182.43,182.28,5.72]
[1730169027631,27.437795,182.4,182.26,27.437795]
[1730169027946,5.72,182.39,182.26,27.437795]
[1730169028137,2.7449,182.29,182.23,27.437795]
[1730169028537,5.72,182.33,182.23,27.437795]
[1730169028740,5.72,182.33,182.21,5.72]
[1730169028741,2.7449,182.29,182.21,27.437795]
[1730169028928,1.2448,182.32,182.21,27.437795]
[1730169029231,2.7449,182.29,182.21,27.437795]
[1730169029434,2.4891,182.32,182.21,27.437795]
[1730169030032,2.7451,182.28,182.21,27.437795]
[1730169030235,2.4891,182.32,182.21,27.437795]
[1730169030934,2.7452,182.27,182.21,27.437795]
[1730169031631,2.4891,182.32,182.21,27.437795]
[1730169031836,5.72,182.33,182.23,27.437795]
[1730169031837,2.7446,182.31,182.23,27.437795]
[1730169032037,30.58611666,182.49,182.11,2.75905573]
[1730169032038,2.577,182.39,182.26,27.437795]
[1730169032240,5.72,182.38,182.26,27.437795]
[1730169033032,2.7441,182.35,182.26,27.437795]
[1730169033232,5.72,182.38,182.26,30.183095]
[1730169033436,5.72,182.37,182.26,30.183095]
[1730169033648,5.72,182.37,182.26,27.437795]
[1730169033943,5.72,182.37,182.23,27.437795]
[1730169034832,2.7443,182.33,182.23,27.437795]
[1730169035036,5.72,182.37,182.24,2.7456]
[1730169035333,5.72,182.37,182.26,27.437795]
[1730169035836,5.72,182.36,182.26,27.437795]
[1730169036343,2.7444,182.33,182.26,27.437795]
[1730169036836,2.7444,182.33,182.26,30.182995]
[1730169037035,2.7441,182.35,182.26,27.437795]
[1730169037443,5.72,182.36,182.26,27.437795]
[1730169037640,2.7447,182.31,182.24,27.437795]
[1730169037836,5.72,182.36,182.27,27.437795]
[1730169038141,2.7444,182.33,182.27,27.437795]
[1730169039150,2.7444,182.32,182.27,27.437795]
[1730169039443,5.72,182.36,182.27,27.437795]
[1730169039930,5.72,182.36,182.24,27.437795]
[1730169041246,5.72,182.36,182.27,27.437795]
[1730169041947,5.72,182.36,182.22,5.72]
[1730169041948,2.577,182.39,182.3,27.437795]
[1730169042244,27.437795,182.44,182.3,27.437795]
[1730169042245,5.72,182.41,182.3,27.437795]
[1730169042846,5.72,182.41,182.27,5.72]
[1730169042847,33.157795,182.41,182.27,27.437795]
[1730169044142,2.7443,182.34,182.27,30.182995]
[1730169044342,5.72,182.36,182.27,27.437795]
[1730169045236,5.72,182.36,182.23,5.72]
[1730169045237,2.7444,182.32,182.25,2.7453]
[1730169045433,5.72,182.36,182.24,27.437795]
[1730169045840,5.72,182.36,182.25,2.7454]
[1730169045841,2.7444,182.33,182.25,2.7454]
[1730169046048,5.72,182.36,182.25,2.7454]
[1730169046647,5.72,182.36,182.24,27.437795]
[1730169046841,1.1995,182.37,182.27,27.437795]
[1730169047041,2.7443,182.34,182.28,2.7449]
[1730169047244,5.72,182.36,182.27,27.437795]
[1730169047741,2.7442,182.34,182.27,27.437795]
[1730169048340,2.7443,182.33,182.28,2.745]
[1730169048541,2.7443,182.33,182.29,17.14875219]
[1730169049543,5.72,182.36,182.29,17.14875219]
[1730169049759,5.72,182.36,182.29,19.89355219]
[1730169050653,19.67645219,182.42,182.34,17.14875219]
[1730169050654,5.72,182.4,182.34,17.14875219]
[1730169050953,5.72,182.4,182.32,17.14875219]
[1730169051147,2.7438,182.37,182.32,17.14875219]
[1730169052442,2.7438,182.37,182.29,5.72]
[1730169052443,5.72,182.41,182.34,17.14875219]
[1730169052751,5.72,182.41,182.29,5.72]